bitfinex/quotes_ETHUSD_20240820
["timestamp","ask_amount","ask_price","bid_price","bid_amount"]
[1724161211207,0.03567846,2634.4,2634.2,19.54]
[1724161211909,7.5909,2634.8,2634.3,3.79597]
[1724161212139,3.79545,2634.8,2634.3,3.79597]
[1724161212320,3.83126248,2634.7,2634.3,2.333597]
[1724161212537,3.83126248,2634.7,2634.2,19.54]
[1724161212721,3.79586,2634.5,2634.2,19.54]
[1724161213236,0.03591502,2634.4,2634.2,19.54]
[1724161213440,0.03591502,2634.4,2634.3,3.79607]
[1724161213649,3.79516,2635.0,2634.3,3.79607]
[1724161213650,3.79537,2634.8,2634.3,6.509312]
[1724161213809,7.5908,2634.8,2634.3,3.79607]
[1724161214010,0.03577629,2634.7,2634.3,3.79607]
[1724161214210,0.03577629,2634.7,2634.0,2.2742]
[1724161214211,0.03577629,2634.7,2634.6,3.79564]
[1724161214411,3.79487,2635.2,2634.6,3.87154001]
[1724161214644,3.79487,2635.2,2634.7,19.54]
[1724161214843,0.03417921,2635.1,2634.7,22.4879]
[1724161215522,3.82911921,2635.1,2634.7,22.4879]
[1724161216559,0.03417921,2635.1,2634.7,22.4879]
[1724161217059,3.82910921,2635.1,2634.7,22.4879]
[1724161217737,0.03417921,2635.1,2634.8,2.628345]
[1724161217912,3.82911921,2635.1,2634.8,22.168345]
[1724161218112,3.82911921,2635.1,2634.8,19.54]
[1724161218361,3.79494,2635.1,2634.8,19.54]
[1724161218513,0.03402171,2635.0,2634.8,19.54]
[1724161218711,3.79521,2634.9,2634.8,19.54]
[1724161218958,8.35285017,2634.9,2634.8,19.54]
[1724161219128,8.38911727,2634.9,2634.8,19.54]
[1724161219460,3.8314771,2634.9,2634.8,19.54]
[1724161219752,0.0362671,2634.9,2634.8,19.54]
[1724161220161,3.79442,2635.5,2634.9,3.79513]
[1724161220316,6.35077024,2635.9,2635.1,3.7949]
[1724161220514,4.20737214,2635.8,2635.2,23.41053569]
[1724161220758,1.9619175,2636.2,2635.7,3.79402]
[1724161220759,3.79343,2636.2,2635.7,3.79402]
[1724161221060,3.79343,2636.2,2635.6,3.79418]
[1724161221413,0.03430497,2636.1,2635.6,3.79418]
[1724161221761,0.03430497,2636.1,2635.1,23.33484]
[1724161221762,3.79385,2635.9,2635.3,2.4797]
[1724161221966,3.79385,2635.9,2635.2,3.79467]
[1724161221967,3.79385,2635.9,2635.4,0.627437]
[1724161222119,0.03382541,2635.8,2635.4,0.627437]
[1724161222516,3.79409,2635.7,2635.4,0.627437]
[1724161222715,3.7942,2635.6,2635.1,19.54]
[1724161222953,3.79459,2635.4,2634.8,6.08855]
[1724161223134,3.79459,2635.4,2634.6,3.79554]
[1724161223321,3.82807749,2635.3,2634.6,3.79553]
[1724161223652,3.79474,2635.3,2634.6,7.59108]
[1724161226234,6.19456,2636.1,2635.4,3.79447]
[1724161226433,6.19456,2636.1,2635.4,3.79438]
[1724161226434,0.41346397,2636.0,2635.4,3.79438]
[1724161226746,4.20733458,2635.9,2635.2,7.114985]
[1724161226949,3.79386,2635.9,2635.5,19.54]
[1724161227818,3.79362,2636.0,2635.5,19.54]
[1724161228974,3.79377,2635.9,2635.5,19.54]
[1724161230650,7.58762,2635.9,2635.5,19.54]
[1724161230844,7.58765,2635.9,2635.5,21.91543463]
[1724161231045,3.79377,2635.9,2635.5,21.91543463]
[1724161231454,7.58764,2635.9,2635.5,21.91543463]
[1724161231839,3.79377,2635.9,2635.5,21.91543463]
[1724161232040,0.0714301,2635.8,2635.5,21.91543463]
[1724161232450,0.0714301,2635.8,2635.6,0.7303219]
[1724161233572,3.79392,2635.8,2635.6,0.7303219]
[1724161233738,3.79392,2635.8,2635.5,21.91543463]
[1724161234080,0.07289458,2635.7,2635.5,21.90790547]
[1724161234474,7.58766,2635.9,2635.5,21.90790547]
[1724161234475,3.79377,2635.9,2635.5,21.90790547]
[1724161234655,7.58763,2635.9,2635.5,21.90790547]
[1724161234827,3.86711284,2635.8,2635.5,21.90790547]
[1724161235028,3.86711284,2635.8,2635.5,19.53247084]
[1724161235357,0.07319284,2635.8,2635.5,19.53247084]
[1724161235551,0.07319284,2635.8,2635.6,19.53247084]
[1724161236082,3.79348,2636.1,2635.6,23.32666084]
[1724161236375,0.06973148,2636.0,2635.6,27.12078084]
[1724161236578,0.06973148,2636.0,2635.7,2.69235424]
[1724161236773,0.06973148,2636.0,2635.8,19.53247084]
[1724161238255,3.86336148,2636.0,2635.8,19.53247084]
[1724161238461,0.06973148,2636.0,2635.8,19.53247084]
[1724161239189,0.06973148,2636.0,2635.9,0.07587284]
[1724161239485,3.79297,2636.5,2635.9,25.75894084]
[1724161239687,3.79297,2636.5,2636.0,3.79355]
[1724161239841,0.06761946,2636.4,2636.0,3.79355]
[1724161240043,0.06761946,2636.4,2635.9,25.75894084]
[1724161240277,0.06761946,2636.4,2635.9,25.07723011]
[1724161240471,3.86073946,2636.4,2635.9,28.87098011]
[1724161240876,3.86073946,2636.4,2635.9,25.75892084]
[1724161241555,0.06761946,2636.4,2635.9,25.75892084]
[1724161241873,3.86066946,2636.4,2635.9,25.75892084]
[1724161242395,0.06761946,2636.4,2635.9,25.75886084]
[1724161242750,0.06761946,2636.4,2636.0,3.79362]
[1724161243059,0.06761946,2636.4,2636.1,23.40178361]
[1724161243477,3.79251,2636.8,2636.1,26.2887382]
[1724161243791,7.58485,2636.9,2636.3,3.79311]
[1724161244085,0.06788338,2636.7,2636.3,3.86896385]
[1724161244288,0.06787606,2636.8,2636.3,3.86896385]
[1724161244499,0.0677896,2636.6,2636.5,3.7929]
[1724161244696,6.26744,2637.3,2636.6,3.79276]
[1724161244697,0.06788338,2636.7,2636.6,3.79276]
[1724161244855,3.7919,2637.2,2636.7,3.79259]
[1724161245191,0.06363462,2637.1,2636.8,19.53247084]
[1724161245394,0.06363462,2637.1,2636.9,3.7923]
[1724161245596,0.06363462,2637.1,2636.9,3.7922]
[1724161245895,3.79151,2637.5,2636.9,3.7922]
[1724161245896,7.58307,2637.5,2636.9,3.7922]
[1724161246077,0.06345633,2637.0,2636.9,3.7922]
[1724161246387,0.0634729,2637.0,2636.9,6.12423581]
[1724161246599,3.79126,2637.7,2636.9,6.12423581]
[1724161246600,3.79126,2637.7,2637.1,3.79199]
[1724161246961,3.85567043,2637.6,2637.1,3.79195]
[1724161247309,3.79111,2637.8,2637.3,7.58334]
[1724161247461,0.06400345,2637.5,2637.4,19.53247084]
[1724161247664,3.79125,2637.7,2637.4,19.53247084]
[1724161247890,3.79133,2637.6,2637.4,19.53247084]
[1724161248092,4.549416,2637.7,2637.4,19.53247084]
[1724161248609,0.06396608,2637.6,2637.4,19.53247084]
[1724161248964,3.79119,2637.7,2637.4,19.53247084]
[1724161249274,3.79083,2638.0,2637.4,23.32401084]
[1724161249602,7.58167,2638.0,2637.5,6.11066]
[1724161249804,0.06414473,2637.9,2637.5,2.3192]
[1724161250102,0.06414473,2637.9,2637.6,19.53247084]
[1724161250666,0.06414473,2637.9,2637.7,19.53247084]
[1724161250910,0.06414473,2637.9,2637.8,0.07581506]
[1724161251201,0.0638174,2637.9,2637.8,3.79091]
[1724161251411,0.0638174,2637.9,2637.8,12.85047808]
[1724161251623,7.57997,2638.6,2637.8,12.85047808]
[1724161251624,3.79004,2638.5,2637.9,3.79084]
[1724161251772,3.78997,2638.6,2638.0,23.32320084]
[1724161252102,7.57935,2638.8,2638.1,23.39886571]
[1724161252324,3.78982,2638.7,2638.1,26.11782528]
[1724161252463,3.78965,2638.8,2638.2,3.79046]
[1724161252660,3.79042,2638.3,2638.1,19.53247084]
[1724161252996,3.79027,2638.4,2638.1,19.53247084]
[1724161253162,3.79011,2638.5,2638.1,19.53247084]
[1724161253603,7.58026,2638.5,2638.1,19.53247084]
[1724161253809,3.79046,2638.2,2638.1,19.53247084]
[1724161254259,10.00832,2638.2,2638.1,19.53247084]
[1724161254463,3.79046,2638.2,2638.1,19.53247084]
[1724161255409,8.338998,2638.2,2638.1,19.53247084]
[1724161255765,4.548538,2638.2,2638.1,19.53247084]
[1724161256114,7.58178,2637.9,2637.8,19.53247084]
[1724161256271,3.79103,2637.8,2637.5,19.53247084]
[1724161256607,3.79118,2637.7,2637.6,19.53247084]
[1724161256906,8.340567,2637.7,2637.6,19.53247084]
[1724161257105,3.79118,2637.7,2637.6,19.53247084]
[1724161257411,0.06296166,2637.7,2637.6,19.53247084]
[1724161257906,6.23266,2637.8,2636.3,7.27]
[1724161258129,0.758078,2638.2,2636.3,7.27]
[1724161258130,3.7922,2637.0,2636.4,3.79294]
[1724161258424,0.06248922,2636.9,2636.6,3.79267]
[1724161258727,3.79198,2637.2,2636.6,3.79267]
[1724161259021,3.85459265,2637.1,2636.4,3.79292]
[1724161259329,0.06255265,2637.1,2636.6,3.79275]
[1724161259483,0.06255265,2637.1,2636.9,3.79229]
[1724161259683,0.06255265,2637.1,2636.8,2.4107]
[1724161259986,3.79133,2637.6,2636.9,3.79221]
[1724161260184,4.803156,2637.7,2637.2,3.79189]
[1724161260425,4.803156,2637.7,2637.0,3.79207]
[1724161260426,0.0629045,2637.5,2637.0,3.79207]
[1724161260629,3.8542954,2637.6,2637.0,3.79207]
[1724161260780,0.38542954,2637.5,2637.1,0.55]
[1724161260985,0.06284098,2637.5,2637.1,0.55]
[1724161261581,0.06284098,2637.5,2637.3,2.2749]
[1724161261803,3.79082,2638.0,2637.4,4.34154]
[1724161261804,7.58167,2638.0,2637.4,4.34154]
[1724161262205,2.3047,2638.1,2637.6,3.79132]
[1724161262206,3.79068,2638.1,2637.6,3.79132]
[1724161262452,8.339168,2638.2,2637.6,3.79132]
[1724161262753,6.12664,2638.5,2637.7,3.79109]
[1724161263230,2.3366,2638.5,2637.7,3.79109]
[1724161263438,3.79049,2638.2,2637.7,3.79109]
[1724161263770,3.79011,2638.5,2637.9,6.04808]
[1724161263906,3.79011,2638.5,2637.9,9.83896]
[1724161264106,3.79011,2638.5,2637.9,6.04808]
[1724161264661,3.78998,2638.6,2637.9,6.04808]
[1724161264865,3.7901,2638.5,2638.0,3.79074]
[1724161265146,7.57998,2638.6,2638.0,26.26033292]
[1724161265552,3.78962,2638.8,2638.2,3.79042]
[1724161265751,3.78962,2638.8,2638.3,19.53247084]
[1724161266123,2.2924,2639.1,2638.4,19.53247084]
[1724161266339,3.78969,2638.8,2638.4,19.53247084]
[1724161266506,0.06389997,2638.7,2638.4,19.53247084]
[1724161266708,3.78938,2639.0,2638.4,23.32263084]
[1724161267147,3.85318624,2638.9,2638.4,23.32263084]
[1724161267448,3.78976,2638.7,2638.4,19.53247084]
[1724161268116,0.06148627,2638.6,2638.4,19.53247084]
[1724161268656,3.79003,2638.5,2638.4,19.53247084]
[1724161269101,0.06141293,2638.5,2638.4,19.53247084]
[1724161269628,3.78967,2638.8,2638.4,19.53247084]
[1724161269838,0.06145378,2638.5,2638.4,19.53247084]
[1724161270159,7.57882,2639.0,2638.5,6.16389]
[1724161270508,3.78939,2639.0,2638.5,6.16389]
[1724161270706,7.57879,2639.0,2638.5,9.11254808]
[1724161270931,3.78956,2638.9,2638.5,5.32255808]
[1724161271135,3.78939,2639.0,2638.5,9.11247808]
[1724161271336,7.57819,2639.2,2638.6,3.86566965]
[1724161271552,3.78907,2639.2,2638.6,3.86566965]
[1724161271750,3.78948,2638.9,2638.4,19.53247084]
[1724161271953,3.78969,2638.8,2638.5,0.55]
[1724161272119,3.78948,2638.9,2638.5,0.55]
[1724161272537,7.57854,2639.1,2638.5,4.34002]
[1724161272734,3.78925,2639.1,2638.5,4.34002]
[1724161273011,7.5785,2639.1,2638.6,2.38724908]
[1724161273208,3.78925,2639.1,2638.6,2.38724908]
[1724161273619,7.57853,2639.1,2638.6,2.38724908]
[1724161273820,3.78936,2639.0,2638.5,4.33994]
[1724161274005,3.78949,2638.9,2638.5,0.55]
[1724161274231,9.99054,2639.1,2638.5,4.34003]
[1724161274438,3.78925,2639.1,2638.5,4.34003]
[1724161274622,3.78908,2639.2,2638.6,0.434003]
[1724161274822,3.78944,2639.0,2638.6,0.434003]
[1724161275006,3.78943,2639.0,2638.5,0.55]
[1724161275209,3.78943,2639.0,2638.5,4.34002]
[1724161276249,7.57886,2639.0,2638.5,4.34002]
[1724161276553,7.57821,2639.2,2638.6,2.860902]
[1724161276787,3.78919,2639.1,2638.6,6.650742]
[1724161277187,3.78919,2639.1,2638.6,2.860902]
[1724161277485,3.78934,2639.0,2638.6,2.860902]
[1724161277841,6.12012,2639.2,2638.5,0.55]
[1724161278084,3.78968,2638.8,2638.4,0.55]
[1724161278311,3.78876,2639.4,2638.7,3.78973]
[1724161278596,0.39976597,2640.3,2638.4,0.55]
[1724161278597,3.78858,2639.6,2638.8,3.0261]
[1724161278743,7.57652,2639.8,2638.9,0.30261]
[1724161278949,3.78854,2639.6,2639.0,0.55]
[1724161279176,3.78823,2639.8,2639.0,4.3393]
[1724161279788,3.78843,2639.7,2639.1,3.78905]
[1724161279999,5.17,2640.4,2639.1,3.78905]
[1724161280000,3.78864,2639.5,2639.1,0.843096]
[1724161280291,3.78864,2639.5,2639.0,0.55]
[1724161280445,3.78864,2639.5,2638.9,4.09196]
[1724161280640,0.06332521,2639.4,2638.9,4.09196]
[1724161280948,0.06332521,2639.4,2639.0,0.55]
[1724161281147,3.7886,2639.5,2638.9,0.30261]
[1724161281351,0.06332521,2639.4,2639.0,0.55]
[1724161281551,3.7886,2639.5,2639.0,0.55]
[1724161281782,3.789,2639.3,2638.8,2.4761]
[1724161281987,3.78911,2639.2,2638.8,2.4761]
[1724161282172,0.06313802,2639.2,2638.8,2.4761]
[1724161282355,0.06313802,2639.2,2638.9,0.55]
[1724161282558,3.78888,2639.3,2638.8,2.4761]
[1724161282772,0.06308601,2639.1,2638.8,3.402691]
[1724161283087,3.78868,2639.5,2639.0,3.7893]
[1724161283297,3.78836,2639.7,2639.1,0.07577261]
[1724161283447,0.06283854,2639.4,2639.3,6.24293]
[1724161283646,3.78813,2639.9,2639.4,3.78872]
[1724161283841,3.78813,2639.9,2639.3,22.06233385]
[1724161283842,3.78813,2639.9,2639.5,2.58510539]
[1724161284086,3.78826,2639.8,2639.3,21.98657084]
[1724161284398,3.78861,2639.5,2639.3,19.53247084]
[1724161284559,7.57746,2639.4,2638.9,19.53247084]
[1724161284758,3.78911,2639.2,2638.9,19.53247084]
[1724161284965,3.78882,2639.4,2638.9,19.53247084]
[1724161285278,3.78882,2639.4,2638.9,22.82370392]
[1724161285480,3.7885,2639.6,2638.9,22.82370392]
[1724161285681,3.78823,2639.8,2639.1,3.78906]
[1724161285882,3.78823,2639.8,2639.2,4.33892]
[1724161286891,0.1259179,2640.0,2639.0,25.69148084]
[1724161286892,3.78845,2639.6,2639.0,25.69148084]
[1724161287190,3.9139079,2640.0,2639.1,3.44827139]
[1724161287343,3.78812,2639.9,2639.2,23.32140084]
[1724161287544,3.78812,2639.9,2639.3,0.55]
[1724161287747,3.78825,2639.8,2639.2,19.53247084]
[1724161288267,7.57653,2639.8,2639.2,23.32148084]
[1724161288451,3.78803,2639.9,2639.4,3.7887]
[1724161288653,3.78803,2639.9,2639.5,0.55]
[1724161289105,0.1259179,2640.0,2639.5,0.55]
[1724161289275,0.1259179,2640.0,2639.5,4.33858]
[1724161289686,0.1259179,2640.0,2639.6,6.34767066]
[1724161289883,0.1259179,2640.0,2639.7,1.06862507]
[1724161290157,0.1259179,2640.0,2639.8,0.55]
[1724161290353,0.1259179,2640.0,2639.9,3.78802]
[1724161290555,0.1259179,2640.0,2639.9,30.00501084]
[1724161290868,0.1259179,2640.0,2639.9,33.00501084]
[1724161291068,0.1259179,2640.0,2639.9,32.62435443]
[1724161291386,0.1259179,2640.0,2639.9,28.83633443]
[1724161292007,3.78595,2641.4,2640.8,6.13312]
[1724161292301,6.18474,2641.6,2640.8,6.13312]
[1724161292302,6.18476,2641.6,2640.9,3.78647]
[1724161292501,0.06249731,2641.3,2641.0,0.613297]
[1724161292706,3.78532,2641.8,2641.0,0.6890178]
[1724161292908,0.06053824,2641.2,2641.0,0.613297]
[1724161293199,6.16528,2642.0,2641.1,3.78618]
[1724161293403,3.78533,2641.8,2641.2,4.7760577]
[1724161293701,0.06133071,2641.9,2641.3,3.78591]
[1724161293905,0.06053403,2641.7,2641.3,3.78591]
[1724161294105,0.06062747,2641.8,2641.3,3.78591]
[1724161294405,0.06079945,2641.7,2641.4,0.62570832]
[1724161294582,0.06079945,2641.7,2641.6,3.78558]
[1724161294784,3.78475,2642.2,2641.5,4.22676183]
[1724161294992,3.78531,2641.8,2641.5,0.44116183]
[1724161295155,3.78531,2641.8,2641.2,0.4399477]
[1724161295353,2.3802,2642.3,2641.2,0.4399477]
[1724161295354,3.78577,2641.5,2641.2,0.4399477]
[1724161295564,0.06017519,2641.4,2641.2,0.4399477]
[1724161295907,3.78558,2641.6,2641.2,0.4399477]
[1724161296111,0.06005703,2641.3,2641.2,0.4399477]
[1724161296263,3.78549,2641.7,2641.2,0.4399477]
[1724161296467,0.06005703,2641.3,2641.2,4.2260977]
[1724161296772,0.06011929,2641.3,2641.2,4.2260977]
[1724161296976,3.78529,2641.9,2641.2,0.4399477]
[1724161297179,3.78599,2641.4,2640.8,3.0]
[1724161297539,3.78599,2641.4,2640.8,3.7867]
[1724161297678,3.78563,2641.6,2640.7,6.19387]
[1724161297679,0.06012451,2641.3,2640.9,3.78653]
[1724161297857,0.06012451,2641.3,2640.9,3.78647]
[1724161298064,3.78535,2641.8,2641.1,3.78629]
[1724161298364,3.78535,2641.8,2641.0,0.45436331]
[1724161298365,3.78535,2641.8,2641.2,3.78605]
[1724161298599,0.06027087,2641.7,2641.2,3.78605]
[1724161298799,0.06027087,2641.7,2641.0,4.165027]
[1724161299117,3.78581,2641.5,2640.8,3.78668]
[1724161299410,3.84608897,2641.4,2640.7,2.4071]
[1724161299613,3.84608897,2641.4,2640.8,3.78664]
[1724161300111,3.78603,2641.3,2640.7,2.4071]
[1724161300275,3.78603,2641.3,2640.9,19.53247084]
[1724161300276,3.78632,2641.1,2640.9,19.53247084]
[1724161300678,0.05926634,2641.0,2640.9,19.53247084]
[1724161300882,0.05926634,2641.0,2640.9,22.09942692]
[1724161301211,3.78581,2641.5,2640.9,22.09942692]
[1724161301212,6.18966,2641.7,2641.0,3.78633]
[1724161301509,3.7852,2641.9,2641.2,3.78605]
[1724161301712,3.7852,2641.9,2641.2,6.10395]
[1724161302014,0.06071819,2641.8,2641.3,3.78591]
[1724161302195,0.06071819,2641.8,2641.4,20.52145684]
[1724161302398,3.78515,2641.9,2641.4,20.52145684]
[1724161302578,3.78492,2642.1,2641.4,24.30730684]
[1724161302783,3.78492,2642.1,2641.5,19.53247084]
[1724161303135,3.78492,2642.1,2641.5,2.80931868]
[1724161303269,0.06061927,2642.0,2641.4,4.774766]
[1724161304223,3.84562927,2642.0,2641.4,0.988986]
[1724161304370,3.84562927,2642.0,2641.4,4.774836]
[1724161304882,0.06061927,2642.0,2641.6,3.78557]
[1724161305081,0.06061927,2642.0,2641.6,0.8560186]
[1724161305282,3.78473,2642.2,2641.6,0.93172032]
[1724161305485,0.06036387,2641.9,2641.8,7.57058]
[1724161305692,0.1259179,2642.6,2642.0,3.78487]
[1724161306022,0.1259179,2642.6,2642.1,0.07568872]
[1724161306023,0.05899874,2642.5,2642.1,0.07568872]
[1724161306167,0.05899874,2642.5,2642.2,3.7847]
[1724161306844,0.05899874,2642.5,2642.2,3.78463]
[1724161307000,0.05899874,2642.5,2642.4,3.78443]
[1724161307632,0.1259179,2642.6,2642.5,3.78429]
[1724161307844,0.1259179,2642.6,2642.5,4.33429]
[1724161308444,0.18514824,2642.6,2642.5,8.11858]
[1724161308658,0.18514824,2642.6,2642.5,8.9682843]
[1724161308951,0.1259179,2642.6,2642.5,18.1302743]
[1724161309103,0.01045363,2642.6,2642.5,18.1302743]
[1724161309617,0.01045363,2642.6,2642.5,23.2862743]
[1724161309831,0.01045363,2642.6,2642.5,27.0705643]
[1724161310346,0.01045363,2642.6,2642.5,23.2862743]
[1724161310645,0.01045363,2642.6,2642.5,19.5019843]
[1724161310848,0.01045363,2642.6,2642.5,23.2862743]
[1724161311201,0.1499,2643.2,2643.1,13.81889]
[1724161311397,0.1499,2643.2,2643.1,19.266379]
[1724161312401,0.1499,2643.2,2643.1,23.049809]
[1724161312604,0.1499,2643.2,2643.1,23.429909]
[1724161312921,3.9063679,2645.2,2644.0,3.78203]
[1724161312922,0.1259179,2645.2,2644.0,3.78203]
[1724161313261,0.1259179,2645.2,2643.3,3.78301]
[1724161313262,0.05849197,2645.1,2644.5,3.78131]
[1724161313399,0.1259179,2645.2,2644.6,3.78123]
[1724161313606,0.1259179,2645.2,2644.2,2.4051]
[1724161313854,0.05773188,2645.1,2645.0,3.78069]
[1724161314051,0.1259179,2645.2,2644.4,3.78153]
[1724161314052,0.1259179,2645.2,2645.1,3.78057]
[1724161314381,0.1259179,2645.2,2645.1,4.33057]
[1724161314585,0.1259179,2645.2,2645.1,8.11114]
[1724161314732,0.1259179,2645.2,2645.1,0.55]
[1724161314933,0.1259179,2645.2,2645.0,3.55]
[1724161315246,0.1259179,2645.2,2644.8,3.0]
[1724161315468,0.1259179,2645.2,2644.6,6.17712]
[1724161315779,0.05854013,2645.1,2644.9,3.78084]
[1724161315932,0.1259179,2645.2,2645.0,0.378084]
[1724161316135,0.1259179,2645.2,2645.1,3.78057]
[1724161316491,0.1259179,2645.2,2644.7,3.0]
[1724161316777,0.1259179,2645.2,2644.3,3.78167]
[1724161316979,0.05750825,2645.1,2644.2,2.3787]
[1724161317133,3.78074,2645.0,2644.3,0.616067]
[1724161317548,3.9063979,2645.2,2644.3,0.616067]
[1724161317549,0.05813615,2644.9,2644.3,4.397757]
[1724161317752,0.05813615,2644.9,2644.5,3.78142]
[1724161317951,0.1259179,2645.2,2644.6,6.20516]
[1724161318180,0.1259179,2645.2,2644.7,8.182796]
[1724161318388,0.1259179,2645.2,2644.8,3.78092]
[1724161318542,0.1259179,2645.2,2644.9,3.0]
[1724161318743,0.1259179,2645.2,2645.1,7.56114]
[1724161318955,0.1259179,2645.2,2645.1,12.167254]
[1724161319249,0.1259179,2645.2,2645.1,18.308724]
[1724161319636,0.1259179,2645.2,2645.1,14.528154]
[1724161320237,0.1259179,2645.2,2645.1,18.308724]
[1724161320994,0.1259179,2645.2,2645.1,22.089294]
[1724161321138,0.1259179,2645.2,2645.1,18.308724]
[1724161321337,3.77862,2646.5,2645.6,3.77978]
[1724161321338,3.77886,2646.3,2645.6,3.77978]
[1724161321542,0.0573813,2646.2,2645.7,0.55]
[1724161321854,0.0573813,2646.2,2645.7,4.32968]
[1724161322187,3.77858,2646.5,2645.8,3.77956]
[1724161322339,0.0565974,2646.1,2646.0,3.77928]
[1724161322535,3.7781,2646.9,2646.1,0.55]
[1724161322764,2.4557,2647.0,2646.2,4.211838]
[1724161322968,7.6135552,2646.9,2646.3,0.55]
[1724161323179,7.6135552,2646.9,2646.3,4.32884]
[1724161323180,0.0573152,2646.9,2646.3,4.32884]
[1724161323351,0.0573152,2646.9,2646.3,0.55]
[1724161323559,3.7787,2646.5,2645.7,3.0]
[1724161323872,7.55785,2646.3,2645.8,0.55]
[1724161324054,3.77952,2645.9,2645.2,6.10008]
[1724161324256,3.77952,2645.9,2645.2,6.10002]
[1724161324584,6.06046,2646.4,2645.7,3.77971]
[1724161324585,0.05624156,2645.8,2645.7,3.77971]
[1724161324794,2.2817,2646.4,2645.6,3.77976]
[1724161324795,7.55786,2646.3,2645.6,3.77976]
[1724161324990,3.77917,2646.1,2645.5,3.77997]
[1724161325171,0.05721724,2646.0,2645.7,3.77961]
[1724161325689,6.06004,2646.7,2646.0,3.77919]
[1724161325895,2.2817,2646.7,2646.1,0.55]
[1724161326095,3.77804,2646.9,2646.1,0.55]
[1724161326096,3.77804,2646.9,2646.2,3.77886]
[1724161326291,6.05968,2647.0,2646.4,3.77865]
[1724161326440,0.05726423,2646.8,2646.4,3.77865]
[1724161326644,2.2817,2647.0,2646.3,0.55]
[1724161326947,0.05732239,2646.7,2646.0,3.77922]
[1724161327145,0.05732239,2646.7,2644.9,4.48076]
[1724161327146,2.387,2646.3,2645.1,3.356814]
[1724161327576,3.7792,2646.1,2645.1,3.356814]
[1724161327784,3.77955,2645.9,2645.1,3.356814]
[1724161327948,3.7797,2645.8,2645.1,3.356814]
[1724161328142,0.05649408,2645.8,2645.4,3.78009]
[1724161328380,2.3914,2646.7,2646.1,3.7791]
[1724161328542,0.05732885,2646.6,2646.2,3.77897]
[1724161328884,0.05732885,2646.6,2646.1,3.7791]
[1724161328885,0.05732885,2646.6,2646.1,3.77901]
[1724161329079,0.05732885,2646.6,2646.1,7.55806]
[1724161329296,0.05732885,2646.6,2646.2,4.32892]
[1724161329474,0.05732885,2646.6,2646.1,3.77901]
[1724161329842,3.83575885,2646.6,2646.0,3.77928]
[1724161330045,0.05732885,2646.6,2646.1,7.32913]
[1724161330251,0.05732885,2646.6,2646.4,3.77862]
[1724161330484,0.05732885,2646.6,2646.5,3.77857]
[1724161330670,6.2399,2647.4,2646.8,3.77808]
[1724161330870,3.77708,2647.6,2647.0,3.77777]
[1724161331087,6.3653179,2647.8,2647.1,3.85324242]
[1724161331294,2.5885179,2647.8,2647.4,3.77718]
[1724161331585,2.5885179,2647.8,2647.3,3.77741]
[1724161331755,2.5385179,2647.8,2647.2,8.10493]
[1724161331959,2.5385179,2647.8,2647.2,4.32745]
[1724161332287,3.77696,2647.7,2647.0,4.210537]
[1724161332472,0.0759179,2647.8,2647.4,3.77718]
[1724161332682,0.0759179,2647.8,2647.1,0.55]
[1724161332683,0.00631438,2647.8,2647.7,3.77686]
[1724161332883,0.00631438,2647.8,2647.7,8.10372]
[1724161333078,3.77339,2650.2,2647.9,0.7]
[1724161333328,0.1259179,2650.4,2647.7,8.3903938]
[1724161333329,3.77349,2650.1,2649.1,3.77473]
[1724161333490,0.1259179,2650.4,2648.5,0.3799]
[1724161333491,0.1259179,2650.4,2649.2,0.62547178]
[1724161333691,0.1259179,2650.4,2649.4,2.3161]
[1724161333939,0.1259179,2650.4,2649.5,0.62545487]
[1724161334157,0.1259179,2650.4,2649.7,5.156]
[1724161334443,0.1259179,2650.4,2649.8,5.8661]
[1724161334740,0.1259179,2650.4,2650.3,3.77315]
[1724161334892,0.1259179,2650.4,2650.3,0.55]
[1724161335094,0.1259179,2650.4,2650.3,3.0]
[1724161335319,0.1259179,2650.4,2649.6,3.29415549]
[1724161335522,0.1259179,2650.4,2649.7,0.55]
[1724161335729,0.1259179,2650.4,2649.0,3.77492]
[1724161335730,3.77348,2650.1,2649.0,3.77492]
[1724161335939,3.77348,2650.1,2649.1,6.77485]
[1724161336237,0.1259179,2650.4,2649.4,3.77443]
[1724161336420,0.1259179,2650.4,2649.7,3.77398]
[1724161336633,0.1259179,2650.4,2649.8,3.0]
[1724161336836,0.1259179,2650.4,2649.5,3.377443]
[1724161337032,3.77351,2650.1,2649.5,0.377443]
[1724161337212,6.02361,2650.1,2648.8,6.09127]
[1724161337537,3.77415,2649.6,2648.6,3.77557]
[1724161337706,3.77415,2649.6,2648.2,6.0749]
[1724161337707,3.7743,2649.5,2648.3,3.77596]
[1724161337910,3.7743,2649.5,2648.4,0.607476]
[1724161338113,3.7743,2649.5,2647.7,4.8402638]
[1724161338114,3.77535,2648.8,2647.7,4.8402638]
[1724161338430,0.05086656,2648.7,2647.7,4.8402638]
[1724161338753,2.2501,2649.4,2647.8,3.77671]
[1724161338754,3.77529,2648.9,2647.8,3.77671]
[1724161338903,0.05066731,2648.6,2647.8,3.77671]
[1724161339094,3.77485,2649.2,2648.0,3.77641]
[1724161339319,0.05030099,2648.5,2648.1,4.153901]
[1724161339495,2.2501,2649.4,2648.1,4.153901]
[1724161339496,2.2501,2649.4,2648.8,3.77528]
[1724161339851,3.77373,2649.9,2649.0,3.775]
[1724161339852,2.2729,2649.9,2649.0,3.775]
[1724161340048,2.2729,2649.9,2648.4,6.24365]
[1724161340049,2.2729,2649.9,2649.2,3.77468]
[1724161340252,2.3988179,2650.4,2649.1,7.15236]
[1724161340401,3.77389,2649.8,2649.1,0.3775]
[1724161340596,3.77399,2649.8,2649.0,3.0]
[1724161340800,6.1719479,2650.4,2648.4,2.4678]
[1724161340801,3.77361,2650.0,2648.4,2.4678]
[1724161341010,2.3988179,2650.4,2648.9,3.77509]
[1724161341011,3.77388,2649.8,2648.9,3.77509]
[1724161341240,2.3988179,2650.4,2648.7,3.62551]